[Event "Sheffield Masters 2024"]
[Site "Sheffield"]
[Date "2024.04.10"]
[Round "1"]
[White "Pein, Jonathan"]
[Black "Gourlay, Iain"]
[Result "1/2-1/2"]
[ECO "B15"]
[WhiteElo "2247"]
[BlackElo "2307"]
[Annotator "TA"]
[PlyCount "98"]
[EventDate "2024.04.11"]
[EventType "tourn"]
[EventCountry "ENG"]
[SourceTitle "playchess.com"]
[Source "ChessBase"]
[SourceQuality "1"]
[TimeControl "5400+30"]

{[%evp 14,98,29,35,31,34,46,52,41,14,38,15,25,27,49,44,42,28,70,35,32,45,96,81,103,51,102,35,38,20,21,0,67,-46,-27,-28,0,-125,-132,-216,-239,-229,-234,-573,-149,-506,-531,-499,-149,-130,-164,-161,-165,-271,0,0,60,0,60,0,0,0,0,0,0,0,0,0,0,0,551,551,549,550,535,0,0,0,0,0,0,0,0,0,0,0,0]} 1. e4 {[%emt 0:00:03]} c6 {[%emt 0:00:11]} 2. d4 {[%emt 0:00:06]} d5 {[%emt 0:00:08]} 3. Nc3 {[%emt 0:00:08]} dxe4 {[%emt 0:00:22]} 4. Nxe4 {[%emt 0:00:05]} Nf6 {[%emt 0:00:47]} 5. Nxf6+ {[%emt 0:00:07]} exf6 {[%emt 0:00:06]} 6. c3 {[%emt 0:00:08]} Bd6 {[%emt 0:00:35]} 7. Bd3 {[%emt 0:00:09]} O-O {[%emt 0:00:18]} 8. Qc2 {[%emt 0:00:10] Active counter play!} Re8+ {[%emt 0:00:22]} 9. Ne2 {[%emt 0:00:08]} h5 {[%emt 0:00:13][%cal Bh7h5,Bh5h4][%mdl 32]} 10. O-O {[%emt 0:00:19]} h4 {[%emt 0:00:21] White is slightly better.} 11. Nf4 {[%emt 0:00:19]} Nd7 {[%emt 0:09:26]} 12. Qd1 {[%emt 0:00:26]} Nf8 {[%emt 0:22:58]} 13. Qh5 {[%emt 0:00:39]} f5 {[%emt 0:03:57]} 14. Nh3 {[%emt 0:03:05][%cal Oh3g5]} (14. Bxf5 Bxf4 15. Bxf4 g6 16. Bxg6 Nxg6 $19 (16... fxg6 17. Qh6 $17)) 14... Qc7 {[%emt 0:09:49]} 15. Qxh4 {[%emt 0:24:29]} (15. Kh1 {looks sharper.} Bxh2 16. Ng5 Bd6 17. Bc4) 15... Bxh2+ {[%emt 0:01:02]} 16. Kh1 {[%emt 0:00:02] f4 is the strong threat.} Bd6 {[%emt 0:02:13]} 17. Ng5 {[%emt 0:04:58]} g6 {[%emt 0:05:55] [#] Prevents g4.} (17... b5 $14) 18. g4 $1 $16 {[%emt 0:11:43]} fxg4 {[%emt 0:17:22]} 19. Kg2 {[%emt 0:01:30]} (19. Bc4 $1 $16 {[%cal Oh1g2] Threatens to win with Kg2!} Be6 20. Bxe6 fxe6 (20... Nxe6 $2 21. Qh7+ Kf8 22. Re1 $18) 21. Ne4 (21. Qxg4 e5 $14)) 19... Qd8 {[%emt 0:06:47]} (19... Be7 $1 $14) 20. Rh1 {[%emt 0:17:00]} (20. Bc4 $1 $16 {[%cal Of1h1] Rh1! would kill now.} Be6 21. Bxe6 Rxe6 22. Rh1) 20... Qf6 $14 {[%emt 0:00:22]} 21. Bd2 {[%emt 0:02:14]} Be6 $1 {[%emt 0:04:58] Inhibits Bc4.} 22. c4 {[%emt 0:03:15] Wards off Bd5+} b5 {[%emt 0:04:52]} (22... Qxd4 $2 23. Bc3 $18) (22... Qg7 $11) 23. b3 {[%emt 0:15:30]} (23. Nxe6 $1 $14 Qxh4 (23... Qf3+ $2 24. Kg1 $18) 24. Rxh4 Nxe6 25. cxb5 (25. Rxg4 bxc4 26. Bxc4 Kg7 $14)) 23... bxc4 $15 {[%emt 0:00:10]} 24. bxc4 {[%emt 0:00:35]} c5 $40 {[%emt 0:01:46][%mdl 128] White needs to defend precisely.} 25. Qh6 {[%emt 0:05:26]} (25. Nxe6 $11 {keeps the balance.} Qxh4 (25... Rxe6 26. Qxf6 Rxf6 27. Bg5 $16) 26. Rxh4 Nxe6 (26... fxe6 27. Rc1 $16) 27. d5 Nf4+ 28. Bxf4 Bxf4 29. Rxg4) 25... cxd4 $17 {[%emt 0:03:06]} 26. Ne4 {[%emt 0:00:40]} (26. Rae1 $17 {might work better.}) 26... Qf3+ $19 {[%emt 0:00:46]} 27. Kg1 {[%emt 0:00:19]} Be5 {[%emt 0:00:17] Against Qh8+} 28. Qg5 $2 {[%emt 0:04:06]} (28. Bg5 g3 (28... Qxd3 29. Nf6+ Bxf6 30. Bxf6) 29. fxg3) 28... f5 $2 {[%emt 0:02:16]} (28... Qxd3 29. Qxe5 f6 30. Qxf6) (28... Bf5 29. Nf6+ Bxf6 30. Qxf6 $14) (28... Bg7 $19 29. Bf4 Nd7 (29... Qxd3 30. Nf6+ Bxf6 31. Qxf6)) 29. Nf6+ $2 {[%emt 0:03:27][%mdl 8192]} (29. Bf1 $17 {is more resistant.} Qxe4 30. Re1) 29... Kf7 {[%emt 0:00:27]} (29... Bxf6 $2 30. Qxf6 $18) 30. Nxe8 {[%emt 0:00:30][%cal Od3e4]} Rxe8 $2 {[%emt 0:02:06]} (30... Qxd3 $19 {and Black stays clearly on top.} 31. Re1 Rxe8 (31... Kxe8 32. Bb4 $18) (31... Bxc4 $2 32. Nc7 $19) 32. Rxe5 Bxc4) 31. Bf1 $17 {[%emt 0:00:53]} g3 {[%emt 0:00:22]} 32. fxg3 {[%emt 0:00:34]} Bxg3 {[%emt 0:00:13][%csl Gg3][%cal Rf3f2]} 33. Rh8 {[%emt 0:03:15]} (33. Rh3 {was the only chance.} Qf2+ (33... f4 34. Rxg3 fxg3 35. Qf4+ Qxf4 36. Bxf4 $17) 34. Kh1) 33... Bd7 $2 {[%emt 0:01:22]} (33... f4 $19 34. Bb4 Qe3+ 35. Kh1 Bf5) 34. Bg2 $11 {[%emt 0:00:16] Some like it hot} Qf2+ {[%emt 0:00:05]} 35. Kh1 {[%emt 0:00:02]} Re2 {[%emt 0:01:08] [#]} ({Black should try} 35... Be5 $1 $11 36. Rf1 Qg3 37. Bd5+ Be6 38. Qxg3 Bxg3) 36. Rxf8+ $1 {[%emt 0:00:52]} Kxf8 {[%emt 0:00:13][%csl Ge2][%cal Rf2g2]} 37. Qf6+ {[%emt 0:00:56]} Ke8 $1 {[%emt 0:00:34][%csl Ge2][%cal Rf2g2]} 38. Qxg6+ {[%emt 0:00:05]} Kd8 $1 {[%emt 0:00:20][%csl Ge2][%cal Rf2g2]} 39. Ba5+ {[%emt 0:00:56]} Bc7 $1 {[%emt 0:00:45]} 40. Qf6+ {[%emt 0:00:24]} Ke8 {[%emt 0:00:48][%csl Ge2][%cal Rf2g2]} (40... Kc8 $5 41. Qa6+ $8 Kd8 42. Qf6+ Kc8 43. Qa6+ Kd8 44. Qf6+ $11) 41. Qh8+ {[%emt 0:00:14]} Ke7 $2 {[%emt 0:00:21][%mdl 8192] [#]} (41... Kf7 $1 $11 {and Black has nothing to worry.} 42. Qh5+ Kf6 43. Qh6+ Kf7 44. Bd5+ Be6 45. Bxe6+ Rxe6 46. Qh7+ Ke8 47. Qg8+ Kd7 48. Qf7+ Re7 49. Qd5+ Bd6 (49... Kc8 50. Qa8+ Kd7 51. Qd5+ Kc8 52. Qa8+ Kd7 53. Qd5+ $11) 50. Qb5+ (50. Qb7+ $2 Ke8 $19) 50... Ke6 (50... Kc8 51. Qc6+ Bc7 52. Qa8+ Bb8 53. Qc6+ Bc7 54. Bxc7 $11) 51. Qd5+ Kd7 52. Qb5+ (52. Qb7+ $2 Ke8 $19) 52... Kc8 53. Qc6+ Bc7 54. Bxc7 Re1+ (54... Rxc7 55. Qe8+ Kb7 56. Rb1+) 55. Rxe1 Qxe1+ 56. Kh2 (56. Kg2 Qe2+ 57. Kh3 Qg4+ 58. Kh2 Qe2+ 59. Kg1 Qe3+ 60. Kh2 Qe2+ 61. Kg3 Qe3+ 62. Kh2 Qe2+ $11) 56... Qe2+ 57. Kg3 (57. Kg1 Qe1+ 58. Kh2 Qe2+ 59. Kg3 Qe3+ 60. Kh2 Qe2+ $11) 57... Qe3+ 58. Kg2 (58. Kh2 Qe2+ 59. Kg1 Qd1+ 60. Kf2 Qd2+ 61. Kf1 Qd1+ 62. Kg2 Qe2+ 63. Kg3 Qe3+ 64. Kh4 Qe7+ 65. Kh5 Qh7+ 66. Kg5 Qxc7 $11) 58... Qe2+ 59. Kh1 (59. Kh3 Qh5+ 60. Kg2 Qe2+ 61. Kh1 Qe1+ 62. Kg2 Qe2+ $11) 59... Qf1+ 60. Kh2 Qe2+ 61. Kg3 (61. Kg1 Qd1+ 62. Kg2 Qe2+ 63. Kg3 Qe3+ 64. Kh4 Qe7+ 65. Kh5 Qxc7 $11) 61... Qe3+ 62. Kh4 (62. Kh2 Qe2+ $11) 62... Qe7+ 63. Kh5 Qh7+ (63... Qxc7 64. Qa8+ Kd7 65. Qd5+ Qd6 66. Qxf5+ Qe6 67. Qb5+ Qc6 68. Qf5+ Kc7 69. Qe5+ Qd6 70. Qa5+ Kb7 71. Qb5+ Kc7 72. Qa5+ Kb8 73. Kg4 $11) 64. Kg5 Qxc7 65. Qa8+ (65. Qxc7+ $2 Kxc7 66. Kf4 Kd6 $19) 65... Kd7 66. Qd5+ Qd6 67. Qxf5+ (67. Qxd6+ Kxd6 68. Kf4 Kc5 69. Kg3 Kxc4 70. a3 d3 71. Kf3 d2 72. Ke2 Kc3 73. Kd1 Kd3 74. a4 f4 75. a5 f3 76. a6 Ke3 77. Kc2 f2 78. Kb3 f1=Q 79. Kb4 d1=Q 80. Kc5 Qd4+ 81. Kc6 Qxa6+ 82. Kc7 Qdd6#) 67... Kd8) 42. Bb4+ $1 $18 {[%emt 0:00:43]} Bd6 {[%emt 0:00:44][%csl Ge2][%cal Rf2g2]} 43. Qg7+ {[%emt 0:00:18]} Kd8 {[%emt 0:00:11] [#] ( -> ...Qh4+)} 44. Bxd6 $2 {[%emt 0:00:52]} (44. Qg5+ $1 $18 Kc8 (44... Be7 $2 45. Qg8+ $18) 45. Bxd6) 44... Qh4+ $1 $11 {[%emt 0:00:41] The position is equal.} 45. Kg1 {[%emt 0:00:31] aiming for Bg3.} (45. Bh2 $5 Re1+ $8 46. Rxe1 Qxe1+ 47. Bg1 Qh4+ 48. Bh2 Qe1+ 49. Bg1 Qh4+ 50. Bh2 Qe1+ $11) 45... Qf2+ {[%emt 0:00:05]} 46. Kh1 {[%emt 0:00:13]} (46. Kh2 $5 Qh4+ $8 47. Kg1 Qf2+ 48. Kh1 Qh4+ 49. Kg1 $11 (49. Bh2 Re1+ 50. Rxe1 Qxe1+ 51. Bg1 Qh4+ 52. Bh2 Qe1+ 53. Bg1 Qh4+ 54. Bh2 Qe1+ $11)) 46... Qh4+ {[%emt 0:00:05]} 47. Bh2 {[%emt 0:00:12]} (47. Kg1 $5 Qf2+ $8 48. Kh1 $11) 47... Re1+ $1 {[%emt 0:00:11]} 48. Rxe1 {[%emt 0:00:16]} Qxe1+ {[%emt 0:00:05]} 49. Bg1 {[%emt 0:00:21]} Qh4+ {[%emt 0:00:06] Quite a comeback for White.   Weighted Error Value: White=0.45/Black=0.48.  Loses game:     	White=1     	Black=1      Missed win:     	White=1     	Black=3      Mistake:       	White=8     	Black=4      Inaccurate:     	White=3     	Black=1      OK:         	White=13    	Black=13     Best:        	White=6     	Black=6      Strong:       	White=1     	Black=6} 1/2-1/2

[Event "Sheffield Masters 2024"]
[Site "Sheffield"]
[Date "2024.04.10"]
[Round "1"]
[White "Wall, Tim P"]
[Black "Ledger, Andrew J"]
[Result "0-1"]
[ECO "B12"]
[WhiteElo "2197"]
[BlackElo "2336"]
[Annotator "TA"]
[PlyCount "64"]
[EventDate "2024.04.11"]
[EventType "tourn"]
[EventCountry "ENG"]
[SourceTitle "playchess.com"]
[Source "ChessBase"]
[SourceQuality "1"]
[TimeControl "5400+30"]

{[%evp 9,64,36,29,23,26,39,29,34,23,32,33,16,25,29,72,24,26,0,26,0,40,35,46,47,39,56,56,15,38,0,36,24,0,0,35,-19,0,0,0,-31,3,-83,-52,-35,0,-120,-103,-109,-115,-124,-70,-387,-358,-502,-488,-615,-607]} 1. e4 {[%emt 0:00:05]} c6 {[%emt 0:00:21]} 2. d4 {[%emt 0:00:11]} d5 {[%emt 0:00:06]} 3. e5 {[%emt 0:00:09]} Bf5 {[%emt 0:00:40]} 4. h4 {[%emt 0:00:21]} a6 {[%emt 0:00:32]} 5. h5 {[%emt 0:00:26]} c5 {[%emt 0:01:02]} 6. dxc5 {[%emt 0:01:53]} Nc6 {[%emt 0:02:31]} 7. Bd3 $1 {[%emt 0:03:50]} Bxd3 {[%emt 0:03:38]} 8. cxd3 {[%emt 0:01:17] White has an edge.} Nxe5 {[%emt 0:06:16]} 9. d4 {[%emt 0:06:39]} Nc6 {[%emt 0:00:12]} 10. Nf3 {[%emt 0:00:25]} e6 {[%emt 0:08:13]} 11. Nc3 {[%emt 0:04:03]} b6 {[%emt 0:11:50]} 12. cxb6 {[%emt 0:13:07]} ({White should try} 12. b4 $16) 12... Qxb6 $11 {[%emt 0:00:21]} 13. O-O {[%emt 0:06:54]} Bd6 {[%emt 0:07:43] Wards off Bf4} 14. h6 {[%emt 0:01:51]} gxh6 {[%emt 0:04:06]} 15. Re1 {[%emt 0:04:35]} Nge7 {[%emt 0:04:19]} 16. Bxh6 {[%emt 0:05:41] Hoping for Ng5.} Rg8 {[%emt 0:03:15][%cal Og8g6]} 17. Rc1 {[%emt 0:01:49]} Rg6 {[%emt 0:03:20]} 18. Qd2 {[%emt 0:07:56]} Rg4 {[%emt 0:03:02]} 19. Be3 {[%emt 0:10:41]} Kf8 {[%emt 0:09:20] [#]} 20. Ne5 $1 {[%emt 0:04:03]} Bxe5 {[%emt 0:02:52]} 21. dxe5 {[%emt 0:00:14]} Qb7 {[%emt 0:06:22][%cal Oe7f5]} 22. Qe2 {[%emt 0:08:48]} ({White should play} 22. Bg5 $14) 22... Rg6 {[%emt 0:01:52][%cal Od5d4]} 23. Qh5 {[%emt 0:02:17]} Kg8 {[%emt 0:01:59][%cal Od5d4] And now ...d4! would win.} 24. Bg5 {[%emt 0:03:36]} (24. Ne2 $5) 24... Nf5 {[%emt 0:03:05]} (24... Qxb2 $5 25. Bf6 Qb4 $11) 25. Na4 {[%emt 0:04:07]} (25. Bf6 $11) 25... Ng7 {[%emt 0:09:02]} 26. Qh4 {[%emt 0:01:07]} Nf5 {[%emt 0:00:03]} 27. Qf4 {[%emt 0:01:04]} (27. Qh5 $11) 27... h6 $1 $36 {[%emt 0:00:28][%mdl 2048] Black is on the roll.} 28. Bf6 {[%emt 0:00:19]} Kh7 $1 {[%emt 0:00:34]} 29. Nc5 {[%emt 0:02:11] [#]} Qb6 {[%emt 0:00:42]} (29... Qb5 $1 $17 {[%cal Oa8g8] Threatens to win with ...Rag8!} 30. a4 Qb6) 30. g3 $2 {[%emt 0:01:58][%mdl 8192]} ({Better is} 30. Kh1 $1 $15) 30... Rag8 {[%emt 0:00:43][%cal Rf5g3] ...Nxg3! is the strong threat.} 31. Kh2 {[%emt 0:00:29] [#]} (31. Bh4 {was necessary.} Rg4 (31... Qxb2 $2 32. Nd7 $19) 32. Nd7 Rxf4 33. Nxb6) 31... Ncd4 $1 $19 {[%emt 0:02:02][%cal Og6g4] aiming for ...Rg4!} 32. Na4 {[%emt 0:02:38]} Qa5 {[%emt 0:01:26] Weighted Error Value: White=0.47/Black=0.14 (very precise) .  Loses game:     	White=1     	---        Mistake:       	White=5     	Black=1      Inaccurate:     	White=4     	Black=7      OK:         	White=6     	Black=8      Best:        	White=1     	---        Strong:       	White=1     	Black=3} 0-1

[Event "Sheffield Masters 2024"]
[Site "Sheffield"]
[Date "2024.04.11"]
[Round "2.2"]
[White "Gourlay, Iain"]
[Black "O`Gorman, Tom"]
[Result "1/2-1/2"]
[ECO "E04"]
[WhiteElo "2307"]
[BlackElo "2321"]
[Annotator "TA"]
[PlyCount "61"]
[EventDate "2024.04.11"]
[EventType "tourn"]
[EventCountry "ENG"]
[SourceTitle "playchess.com"]
[Source "ChessBase"]
[SourceQuality "1"]
[TimeControl "5400+30"]

{[%evp 18,61,18,16,26,20,27,22,30,18,18,13,20,29,36,35,28,22,31,37,46,54,52,35,38,46,32,41,50,31,52,15,12,16,88,38,17,10,240,4,0,0,0,0,0,-3]} 1. Nf3 {[%emt 0:00:03]} d5 {[%emt 0:00:10]} 2. g3 {[%emt 0:00:12]} Nf6 {[%emt 0:00:22]} 3. Bg2 {[%emt 0:00:19]} c5 {[%emt 0:00:16]} 4. O-O {[%emt 0:01:03]} Nc6 {[%emt 0:00:07]} 5. d4 {[%emt 0:01:02]} e6 {[%emt 0:00:06]} 6. c4 {[%emt 0:00:35]} dxc4 {[%emt 0:00:05]} 7. dxc5 {[%emt 0:01:32]} Qxd1 {[%emt 0:00:46]} 8. Rxd1 {[%emt 0:00:08]} Bxc5 {[%emt 0:00:04]} 9. Nbd2 {[%emt 0:00:26]} c3 {[%emt 0:00:06]} 10. bxc3 {[%emt 0:00:05]} Bd7 {[%emt 0:02:14]} 11. Nb3 {[%emt 0:07:56]} Be7 {[%emt 0:03:23]} 12. Nfd4 {[%emt 0:03:01]} Nxd4 {[%emt 0:02:31]} 13. cxd4 {[%emt 0:06:59]} Nd5 $1 {[%emt 0:00:43]} 14. Bd2 {[%emt 0:03:05]} O-O {[%emt 0:22:15]} 15. e4 {[%emt 0:03:31]} Nf6 {[%emt 0:02:15]} 16. d5 {[%emt 0:02:06]} exd5 {[%emt 0:09:42]} 17. exd5 {[%emt 0:01:50]} Ba3 {[%emt 0:09:25]} 18. Na5 {[%emt 0:06:26][%cal Bb3a5,Ba5c4,Bc4e3][%mdl 32]} Bf5 {[%emt 0:03:25]} 19. Nc4 {[%emt 0:07:26] Repels Bb2} Bc5 {[%emt 0:00:52]} 20. Be3 {[%emt 0:08:35]} Bxe3 {[%emt 0:18:02]} 21. Nxe3 {[%emt 0:00:07]} Bd7 {[%emt 0:00:04]} 22. d6 $36 {[%emt 0:01:23][%cal Oe3d5][%mdl 2048] White fights for an advantage.} Rab8 {[%emt 0:01:52]} 23. Rac1 {[%emt 0:03:57]} Be6 {[%emt 0:02:33][%cal Bd7e6,Be6a2,Ba2b1][%mdl 32]} 24. Rc7 {[%emt 0:08:41]} Rfd8 {[%emt 0:07:13]} 25. Bxb7 {[%emt 0:15:56]} a5 {[%emt 0:06:59]} (25... Ne8 $6 26. Bd5 $16 (26. Re7 Bxa2 27. Bd5 Bxd5 $11)) (25... Bxa2 $11 {remains equal.} 26. Bc6 a5) 26. Bf3 {[%emt 0:07:30] White is much more active.} (26. a4 $16) 26... Bxa2 $14 {[%emt 0:01:22]} 27. Nf5 {[%emt 0:00:18] Ne7+ would now be deadly.} Rb1 $2 {[%emt 0:00:37] [#]} (27... Kf8 $11 {and Black is okay.}) 28. Rxb1 $2 {[%emt 0:04:23]} (28. d7 $1 $18 {Intending Rc8 and mate.} Rxd1+ (28... Rxd7 29. Rc8+) (28... Nxd7 $2 {loses.} 29. Rxb1 Bxb1 30. Ne7+ Kf8 31. Nc6 $18) 29. Bxd1 Nxd7 (29... Rxd7 30. Rc8+) 30. Ne7+ Kf8 31. Nc6) 28... Bxb1 $11 {[%emt 0:00:05] The position is equal.} 29. Ne7+ {[%emt 0:00:06]} Kf8 {[%emt 0:00:10]} 30. Nc6 {[%emt 0:01:23][%csl LRa5,LRd8]} Rxd6 {[%emt 0:00:31]} 31. Nxa5 {[%emt 0:01:23] Weighted Error Value: White=0.20 (precise) /Black=0.21 (precise) .  Loses game:     	---       	Black=1      Missed win:     	White=1     	---        Mistake:       	White=1     	Black=1      Inaccurate:     	White=1     	---        OK:         	White=8     	Black=8      Best:        	---       	Black=2      Strong:       	---       	Black=1} 1/2-1/2

[Event "Sheffield Masters 2024"]
[Site "Sheffield"]
[Date "2024.04.11"]
[Round "2.3"]
[White "Ledger, Andrew J"]
[Black "Pein, Jonathan"]
[Result "0-1"]
[ECO "D35"]
[WhiteElo "2336"]
[BlackElo "2247"]
[Annotator "TA"]
[PlyCount "66"]
[EventDate "2024.04.11"]
[EventType "tourn"]
[EventCountry "ENG"]
[SourceTitle "playchess.com"]
[Source "ChessBase"]
[SourceQuality "1"]
[TimeControl "5400+30"]

{[%evp 23,66,23,19,34,37,0,0,0,1,-9,16,0,37,0,29,34,48,53,44,24,63,70,68,31,46,35,43,31,101,21,5,-212,78,0,0,0,0,-130,-114,-123,-125,-177,-161,-29998,-29999]} 1. d4 {[%emt 0:00:04]} Nf6 {[%emt 0:00:33]} 2. c4 {[%emt 0:00:08]} e6 {[%emt 0:00:07]} 3. Nc3 {[%emt 0:00:13]} d5 {[%emt 0:00:08]} 4. cxd5 {[%emt 0:00:50]} exd5 {[%emt 0:00:06]} 5. Bg5 {[%emt 0:00:06]} Be7 {[%emt 0:00:18]} 6. e3 {[%emt 0:00:43]} c6 {[%emt 0:00:20]} 7. Bd3 {[%emt 0:01:24]} Nbd7 {[%emt 0:00:15]} 8. Nf3 {[%emt 0:01:06]} Nh5 {[%emt 0:00:59]} 9. Bxe7 {[%emt 0:00:29]} Qxe7 {[%emt 0:00:01]} 10. O-O {[%emt 0:00:18]} O-O {[%emt 0:00:55]} 11. Qc2 {[%emt 0:03:40]} g6 {[%emt 0:01:54]} 12. Rab1 {[%emt 0:02:58]} Nb6 {[%emt 0:02:20]} 13. b4 {[%emt 0:06:27]} a6 {[%emt 0:01:14]} 14. Rfe1 {[%emt 0:06:08]} Ng7 {[%emt 0:04:03]} 15. e4 {[%emt 0:10:18] The position is equal.} dxe4 {[%emt 0:06:10]} 16. Nxe4 {[%emt 0:03:49]} Nd5 {[%emt 0:02:53]} 17. Qd2 {[%emt 0:15:01]} Nf5 {[%emt 0:13:39]} 18. Nc3 {[%emt 0:06:11]} Qd6 {[%emt 0:03:27]} 19. Nxd5 {[%emt 0:00:40]} Qxd5 {[%emt 0:02:05]} 20. Re5 {[%emt 0:01:02]} Qd6 {[%emt 0:04:12]} 21. Qf4 {[%emt 0:05:04][%cal Re5f5] Black must now prevent Rxf5.} Ng7 {[%emt 0:04:48]} 22. Qh6 {[%emt 0:03:49] Black is weak on the dark squares} f6 {[%emt 0:06:34][%cal Og7f5] Inhibits Ng5.} 23. Bc4+ {[%emt 0:05:55]} (23. Rbe1 $5 Nf5 (23... fxe5 $2 24. Ng5 $18) 24. Bxf5 fxe5 25. Bc2 $16) 23... Be6 {[%emt 0:10:59] [#]} 24. Rxe6 {[%emt 0:02:49]} Nxe6 {[%emt 0:00:08]} 25. Re1 {[%emt 0:01:30]} Rae8 {[%emt 0:02:02]} (25... Rfe8 $1 $14) 26. Qh3 {[%emt 0:02:25]} (26. h4 $1 $16) 26... Qxb4 {[%emt 0:05:26]} ({Don't go for} 26... f5 $2 27. Ng5 h5 28. Qc3 $18 (28. Bxe6+ Kg7 $18) (28. Rxe6 Rxe6 29. Bxe6+ Kh8 $18) (28. Nxe6 Qxb4 29. Nc7+ Kh7 $18)) 27. Bb3 {[%emt 0:02:30] [#]} (27. Rxe6 $2 {loses.} Qxc4 28. Rxe8 Rxe8 $19) (27. Bxe6+ $11 {and White has nothing to worry.} Kg7 28. Rd1) 27... f5 $2 {[%emt 0:10:28]} 28. Rxe6 {[%emt 0:03:48]} (28. Bxe6+ $16 Kh8 29. a3 Qxa3 30. Qh6) 28... Rxe6 $11 {[%emt 0:00:57]} 29. Bxe6+ {[%emt 0:00:05]} Kg7 {[%emt 0:00:07]} 30. Bb3 {[%emt 0:02:02]} (30. g3 $1 $11) 30... Qc3 $40 {[%emt 0:01:17][%mdl 1152] Black has strong compensation. Black has strong attack.} 31. Kh1 {[%emt 0:14:28]} (31. Bd1 $2 Qc1 32. g3 Qxd1+ $19) 31... Qa1+ {[%emt 0:08:27]} 32. Ng1 {[%emt 0:00:00] [#]} Re8 {[%emt 0:00:34][%cal Oa1g1] Dodges Qe3. ( -> ...Qxg1+!)} 33. Qg3 $2 {[%emt 0:00:00] [#]} (33. g4 $19 Re1 (33... Qxd4 34. gxf5 Qe4+ 35. Nf3 $17) 34. Qg2) 33... Qxg1+ $3 {[%emt 0:00:23][%mdl 512] Weighted Error Value: White=0.59/Black=0.28 (precise) .  Loses game:     	White=1     	---        Missed win:     	---       	Black=1      Mistake:       	White=4     	Black=1      Inaccurate:     	White=3     	Black=3      OK:         	White=4     	Black=6      Best:        	White=2     	Black=2      Brilliant:      	White=1     	Black=1} 0-1

[Event "Sheffield Masters 2024"]
[Site "Sheffield"]
[Date "2024.04.11"]
[Round "2.4"]
[White "Pal, Rohan"]
[Black "Wall, Tim P"]
[Result "1-0"]
[ECO "B31"]
[WhiteElo "2142"]
[BlackElo "2197"]
[Annotator "TA"]
[PlyCount "69"]
[EventDate "2024.04.11"]
[EventType "tourn"]
[EventCountry "ENG"]
[SourceTitle "playchess.com"]
[Source "ChessBase"]
[SourceQuality "1"]
[TimeControl "5400+30"]

{[%evp 9,69,-31,-13,-22,-9,-15,-20,-22,0,-12,0,-36,6,0,0,-5,-6,-4,7,0,31,7,0,0,0,0,0,0,0,0,62,43,70,30,39,45,31,33,82,80,158,168,160,158,243,235,297,294,332,323,380,206,460,168,348,178,192,155,848,851,1028,1006]} 1. e4 {[%emt 0:00:03]} c5 {[%emt 0:00:10]} 2. Be2 {[%emt 0:00:55]} d5 {[%emt 0:04:12]} 3. d3 {[%emt 0:00:11]} e5 {[%emt 0:05:32]} 4. Bg4 {[%emt 0:07:37]} Bxg4 {[%emt 0:08:21]} 5. Qxg4 {[%emt 0:00:07]} Nf6 {[%emt 0:00:12]} 6. Qe2 {[%emt 0:02:33]} Nc6 {[%emt 0:03:09]} 7. Nf3 {[%emt 0:06:37]} d4 {[%emt 0:05:47]} 8. Nbd2 {[%emt 0:13:29] The position is equal.} Bd6 {[%emt 0:03:58]} 9. O-O {[%emt 0:05:45]} Nd7 {[%emt 0:02:15]} 10. c3 {[%emt 0:03:43]} Nf8 {[%emt 0:09:00]} 11. Nc4 {[%emt 0:01:36]} Bc7 {[%emt 0:02:07]} 12. a4 {[%emt 0:05:20]} Ne6 {[%emt 0:04:32]} 13. Bd2 {[%emt 0:07:02]} a6 {[%emt 0:09:01]} 14. cxd4 {[%emt 0:08:49]} cxd4 {[%emt 0:00:19]} 15. b4 {[%emt 0:02:06] Black should prevent b5.} b5 {[%emt 0:00:29]} 16. axb5 {[%emt 0:01:12]} axb5 {[%emt 0:00:09]} 17. Na5 {[%emt 0:01:14]} Nxa5 {[%emt 0:01:32]} 18. bxa5 {[%emt 0:01:01]} O-O {[%emt 0:00:13][%cal Rc7a5]} 19. Bb4 {[%emt 0:01:35]} Nf4 {[%emt 0:05:25]} (19... Re8 $11) 20. Qd2 $14 {[%emt 0:00:47][%cal Og2g3]} Re8 {[%emt 0:01:20]} 21. Kh1 {[%emt 0:04:11]} (21. g3 $5 Qd7 22. Rfc1 $14) 21... Ra6 {[%emt 0:06:09]} 22. g3 {[%emt 0:04:31]} Ne6 {[%emt 0:03:59]} 23. Rfc1 {[%emt 0:02:58]} Qa8 {[%emt 0:05:28]} (23... f6 $14) 24. Ng5 $16 {[%emt 0:02:21] White is more active.} Bd8 {[%emt 0:05:48]} ({Better is} 24... Nxg5 25. Rxc7 h6) 25. Nxe6 {[%emt 0:00:42]} Rexe6 {[%emt 0:00:06]} 26. Rc5 {[%emt 0:17:05][%cal Oa1c1] And now Rac1! would win.} Qb7 {[%emt 0:03:24]} (26... h6 $16 27. Rxb5 Rab6) 27. Rac1 $18 {[%emt 0:00:00]} Re8 {[%emt 0:02:14]} 28. Qa2 {[%emt 0:00:00]} Qd7 {[%emt 0:03:21]} 29. Kg2 {[%emt 0:00:00] Repels Qh3+} h5 {[%emt 0:00:22]} 30. h4 {[%emt 0:00:00]} (30. Rc8 $142) 30... Qg4 $2 {[%emt 0:03:45] [#]} (30... Bxa5 31. Bxa5 Rea8 32. Rxe5 Rxa5) 31. f3 $2 {[%emt 0:00:00]} (31. Rxb5 Bxh4 32. Rb6 Ra7 $18) (31. Rc8) 31... Qd7 $2 {[%emt 0:00:36]} (31... Qg6 {is a better defense.}) 32. Rd5 {[%emt 0:00:00]} (32. Rc8 $142 {Qd5 is the strong threat.} Bxa5 33. Rxe8+ Qxe8 34. Bxa5) 32... Qe6 {[%emt 0:00:24]} 33. Qd2 {[%emt 0:00:17] Repels g5} Qg6 $2 {[%emt 0:01:16]} (33... Bf6 $16 34. Rxb5 Rc8 35. Rxc8+ Qxc8) 34. Rc8 {[%emt 0:00:45]} ({Stronger than} 34. Rxb5 Bxh4 35. Qf2 Bg5 $15) 34... Qf6 {[%emt 0:01:10]} 35. Qg5 {[%emt 0:00:33] Weighted Error Value: White=0.39/Black=0.47.  Loses game:     	---       	Black=1      Mistake:       	White=3     	Black=6      Inaccurate:     	White=2     	Black=2      OK:         	White=13    	Black=8      Best:        	White=2     	Black=1} 1-0